bitfinex/quotes_BTCUSD_20240611
["timestamp","ask_amount","ask_price","bid_price","bid_amount"]
[1718072229156,0.5515039,68487.0,68486.0,0.24619044]
[1718072229785,0.5515039,68487.0,68486.0,0.25619044]
[1718072230244,0.5515039,68487.0,68486.0,0.24619044]
[1718072232110,0.5515039,68487.0,68486.0,0.24719044]
[1718072232320,0.5515039,68487.0,68486.0,0.24619044]
[1718072232763,0.5515039,68487.0,68486.0,0.24719044]
[1718072234966,0.5515039,68495.0,68492.0,0.00017544]
[1718072235146,0.14431993,68494.0,68492.0,0.00017544]
[1718072235391,0.14431993,68494.0,68490.0,0.00017544]
[1718072235607,0.4564,68493.0,68489.0,0.00017544]
[1718072235824,0.60071993,68493.0,68489.0,0.00017544]
[1718072236012,0.60071993,68493.0,68490.0,0.00017544]
[1718072236212,0.60071993,68493.0,68490.0,0.14618144]
[1718072236679,0.60071993,68493.0,68492.0,0.001]
[1718072236906,0.60071993,68493.0,68491.0,0.1]
[1718072237352,0.60071993,68493.0,68492.0,0.00017544]
[1718072237599,0.60071993,68493.0,68491.0,0.10017544]
[1718072237825,0.60071993,68493.0,68492.0,0.00017544]
[1718072238158,0.14431993,68493.0,68492.0,0.00017544]
[1718072239156,0.14631993,68493.0,68492.0,0.00017544]
[1718072239659,0.14631993,68493.0,68492.0,0.00117544]
[1718072240763,0.69782383,68493.0,68492.0,0.00117544]
[1718072242025,0.69782383,68493.0,68492.0,0.14717744]
[1718072242199,0.69782383,68493.0,68492.0,0.24717744]
[1718072246956,0.69782383,68493.0,68492.0,0.247002]
[1718072248044,1.13694463,68493.0,68492.0,0.001]
[1718072248241,0.3282,68477.0,68465.0,0.04356227]
[1718072248450,0.3282,68477.0,68466.0,0.43295979]
[1718072248451,0.4653,68467.0,68466.0,0.43295979]
[1718072248652,0.4653,68467.0,68459.0,0.06551885]
[1718072248653,0.93781993,68467.0,68459.0,0.00017544]
[1718072248829,0.14431993,68466.0,68459.0,0.00017544]
[1718072249049,0.14431993,68466.0,68464.0,0.00017544]
[1718072249253,0.14431993,68465.0,68462.0,0.00017544]
[1718072249454,0.14431993,68465.0,68464.0,0.00017544]
[1718072249945,0.14431993,68465.0,68461.0,0.00017544]
[1718072250144,0.14431993,68465.0,68460.0,0.00017544]
[1718072250348,0.14431993,68465.0,68459.0,0.00017544]
[1718072250835,0.14431993,68465.0,68456.0,0.00017544]
[1718072250836,0.07215996,68460.0,68456.0,0.00017544]
[1718072251043,0.07215996,68460.0,68454.0,0.00017544]
[1718072251044,0.70312729,68459.0,68454.0,0.00017544]
[1718072251270,0.4653,68457.0,68449.0,0.00017544]
[1718072251483,0.14431993,68456.0,68449.0,0.00017544]
[1718072252110,0.15431993,68456.0,68449.0,0.00017544]
[1718072252312,0.14431993,68456.0,68449.0,0.00017544]
[1718072252487,0.01,68454.0,68449.0,0.00017544]
[1718072252687,0.14431993,68453.0,68449.0,0.00017544]
[1718072254727,0.14431993,68453.0,68447.0,0.000946]
[1718072254934,0.01,68452.0,68449.0,0.001]
[1718072255160,0.14431993,68451.0,68449.0,0.001]
[1718072255419,0.5515039,68450.0,68447.0,0.000946]
[1718072255620,0.14431993,68449.0,68447.0,0.000946]
[1718072256237,0.14431993,68449.0,68448.0,0.00017544]
[1718072256480,0.14431993,68449.0,68447.0,0.000946]
[1718072256924,0.14431993,68449.0,68447.0,0.00112144]
[1718072257253,0.14431993,68449.0,68448.0,0.00017544]
[1718072257862,0.5515039,68450.0,68449.0,0.00017544]
[1718072258089,0.5515039,68450.0,68449.0,0.10017544]
[1718072258985,0.5515039,68450.0,68449.0,0.10117544]
[1718072259185,0.5515039,68450.0,68449.0,0.101]
[1718072259407,0.5515039,68450.0,68449.0,0.10117544]
[1718072259611,0.5515039,68450.0,68449.0,0.101]
[1718072259819,0.5515039,68450.0,68447.0,0.00112144]
[1718072260437,0.5515039,68450.0,68448.0,0.146095]
[1718072260438,0.14431993,68449.0,68448.0,0.146095]
[1718072260627,0.69582383,68450.0,68448.0,0.246095]
[1718072260791,0.69582383,68450.0,68449.0,0.1]
[1718072261191,0.69582383,68450.0,68449.0,0.10117544]
[1718072261776,0.69582383,68450.0,68449.0,0.1]
[1718072261979,0.69582383,68450.0,68449.0,0.10017544]
[1718072262180,0.69582383,68450.0,68449.0,0.10117544]
[1718072262431,0.5515039,68450.0,68449.0,0.10117544]
[1718072264457,0.5515039,68450.0,68449.0,0.10017544]
[1718072264616,0.5515039,68450.0,68449.0,0.10117544]
[1718072267323,0.4981,68458.0,68455.0,0.14625644]
[1718072267528,0.14431993,68457.0,68456.0,0.1]
[1718072268003,0.14431993,68457.0,68456.0,0.10017544]
[1718072268229,0.14431993,68457.0,68456.0,0.1]
[1718072269617,0.14414421,68457.0,68456.0,0.1]
[1718072271197,0.14414421,68457.0,68456.0,0.10017544]
[1718072271816,0.14414421,68457.0,68456.0,0.1]
[1718072272019,0.14414421,68457.0,68456.0,0.10017544]
[1718072273121,0.69564811,68457.0,68456.0,0.10017544]
[1718072274911,0.5515039,68457.0,68456.0,0.24625444]
[1718072277169,0.5515039,68457.0,68456.0,0.246079]
[1718072277579,0.69582383,68457.0,68456.0,0.246079]
[1718072279630,0.69582383,68457.0,68456.0,0.26354028]
[1718072281514,1.02522383,68457.0,68456.0,0.11746128]
[1718072282186,1.01522383,68457.0,68456.0,0.11746128]
[1718072283572,1.02522383,68457.0,68456.0,0.11746128]
[1718072283782,1.02522383,68457.0,68456.0,0.01746128]
[1718072283984,1.01522383,68457.0,68456.0,0.01746128]
[1718072284138,1.01522383,68457.0,68453.0,0.1]
[1718072284346,0.14431993,68456.0,68453.0,0.1]
[1718072284752,0.5515039,68455.0,68453.0,0.1]
[1718072284970,0.14431993,68454.0,68453.0,0.1]
[1718072285976,0.62521993,68454.0,68453.0,0.1]
[1718072286188,0.01,68452.0,68447.0,0.000946]
[1718072286397,0.01,68449.0,68447.0,0.000946]
[1718072286601,0.15431993,68448.0,68447.0,0.000946]
[1718072286897,0.14431993,68448.0,68447.0,0.000946]
[1718072287218,0.15431993,68448.0,68447.0,0.000946]
[1718072287421,0.70582383,68448.0,68447.0,0.000946]
[1718072287777,0.70582383,68448.0,68432.0,0.00946]
[1718072287778,0.5271,68433.0,68432.0,0.00946]
[1718072287981,1.77342383,68433.0,68432.0,0.00946]
[1718072288181,1.50382383,68433.0,68432.0,0.00946]
[1718072288382,1.57342383,68433.0,68432.0,0.00946]
[1718072288591,2.41774376,68433.0,68432.0,0.00946]
[1718072288789,2.51774376,68433.0,68432.0,0.00946]
[1718072289617,2.51774376,68433.0,68426.0,0.00946]
[1718072289618,0.9709,68428.0,68426.0,0.00946]
[1718072289825,1.25697989,68428.0,68426.0,0.00946]
[1718072290646,0.3135,68425.0,68396.0,0.14638144]
[1718072290815,0.0696,68395.0,68387.0,0.009449]
[1718072291017,0.14431993,68402.0,68387.0,0.009449]
[1718072291018,0.01,68393.0,68387.0,0.009449]
[1718072291217,0.14431993,68402.0,68391.0,0.00017544]
[1718072291423,0.14431993,68402.0,68387.0,0.009449]
[1718072291424,0.14431993,68402.0,68400.0,0.00017544]
[1718072291600,0.01,68409.0,68397.0,0.00017544]
[1718072291800,0.01,68409.0,68392.0,0.506149]
[1718072291801,0.14431993,68407.0,68392.0,0.00962444]
[1718072292027,0.14431993,68407.0,68398.0,0.00017544]
[1718072292261,0.01,68405.0,68396.0,0.00017544]
[1718072292491,0.07215996,68398.0,68379.0,0.019449]
[1718072292614,0.4604,68397.0,68373.0,0.01]
[1718072292817,0.4604,68397.0,68343.0,0.14672959]
[1718072293115,0.4604,68397.0,68354.0,0.10876138]
[1718072293116,0.01,68383.0,68354.0,0.10876138]
[1718072293363,0.01,68383.0,68300.0,6.2085595]
[1718072293364,0.1,68302.0,68300.0,1.25218878]
[1718072293577,0.11,68342.0,68276.0,0.04357932]
[1718072293578,0.1,68298.0,68276.0,0.04357932]
[1718072293786,0.1,68298.0,67938.0,0.0954]
[1718072294232,0.18,68277.0,68222.0,4.64653418]
[1718072294467,0.18,68277.0,68142.0,0.46242697]
[1718072294468,0.1,68219.0,68142.0,0.46242697]
[1718072294686,0.1,68219.0,68110.0,0.3110269]
[1718072294687,0.78,68142.0,68110.0,0.3110269]
[1718072294909,0.78,68142.0,68122.0,0.00201607]
[1718072294910,0.27983757,68123.0,68122.0,0.00201607]
[1718072295159,6.85829061,68123.0,68122.0,0.04447768]
[1718072295369,6.75716521,68123.0,68110.0,0.12918302]
[1718072295588,6.75716521,68123.0,68044.0,0.07818833]
[1718072295589,0.1,68111.0,68075.0,0.08153496]
[1718072295827,0.1534,68113.0,68075.0,0.08153496]
[1718072295828,0.5332,68102.0,68075.0,0.009375]
[1718072296037,0.75994998,68102.0,68101.0,0.33109267]
[1718072296255,3.59290671,68102.0,68101.0,0.18529267]
[1718072296482,3.73783201,68102.0,68101.0,0.1232128]
[1718072296707,5.128847,68102.0,68101.0,0.12140447]
[1718072296969,4.56663201,68102.0,68101.0,0.12140447]
[1718072297191,5.39682662,68102.0,68101.0,0.12140447]
[1718072297399,0.6673,68075.0,68074.0,0.03361882]
[1718072297617,4.32044423,68075.0,68074.0,0.03361882]
[1718072297838,0.08,68062.0,68061.0,0.4566267]
[1718072298010,1.84546497,68062.0,68061.0,0.4566267]
[1718072298354,1.94546497,68062.0,68061.0,0.4566267]
[1718072298554,1.32949498,68062.0,68061.0,0.4566267]
[1718072298766,0.77041365,68062.0,68061.0,0.4566267]
[1718072298976,0.56497776,68062.0,68061.0,0.4566267]
[1718072299181,0.2,68076.0,68061.0,0.4566267]
[1718072299182,0.45707278,68074.0,68061.0,0.4566267]
[1718072299408,0.30469689,68073.0,68061.0,0.47111171]
[1718072299606,0.14431993,68068.0,68061.0,0.4566267]
[1718072299820,0.14355148,68062.0,68061.0,0.4566267]
[1718072300035,0.5,68085.0,68061.0,0.4566267]
[1718072300036,0.1,68074.0,68061.0,0.4566267]
[1718072300244,0.2,68078.0,68061.0,0.4566267]
[1718072300245,0.1,68075.0,68069.0,0.1]
[1718072300450,0.1,68074.0,68062.0,0.19948895]
[1718072300655,0.1,68074.0,68070.0,0.1]
[1718072300832,0.3,68084.0,68072.0,0.1]
[1718072300976,0.3,68084.0,68062.0,0.07215996]
[1718072300977,0.14431993,68083.0,68073.0,0.03748501]
[1718072301184,0.1,68074.0,68073.0,0.023]
[1718072301421,0.14431993,68074.0,68061.0,0.4566267]
[1718072301592,0.40115996,68077.0,68061.0,0.4566267]
[1718072301593,0.21647989,68062.0,68061.0,0.4566267]
[1718072301797,1.09449488,68062.0,68061.0,0.4566267]
[1718072302028,0.86897989,68062.0,68061.0,0.4566267]
[1718072302202,1.17449488,68062.0,68061.0,0.4566267]
[1718072302786,0.44983492,68062.0,68061.0,0.4566267]
[1718072303003,0.52199488,68062.0,68061.0,0.4566267]
[1718072303233,0.67436707,68062.0,68061.0,0.4566267]
[1718072303443,0.28551499,68041.0,68031.0,0.0004049]
[1718072303645,2.03036707,68041.0,68031.0,0.0004049]
[1718072303849,2.00485208,68041.0,68031.0,0.0004049]
[1718072304059,2.40485208,68041.0,68031.0,0.0004049]
[1718072304280,2.37799488,68041.0,68031.0,0.0004049]
[1718072304492,2.47799488,68041.0,68040.0,0.00520962]
[1718072304723,2.15247989,68041.0,68040.0,0.00520962]
[1718072304932,2.47799488,68041.0,68040.0,0.00520962]
[1718072305140,2.63042017,68041.0,68040.0,0.00520962]
[1718072305346,1.30551499,68032.0,68031.0,0.0004049]
[1718072305562,1.54983492,68032.0,68031.0,0.0004049]
[1718072305768,1.34983492,68032.0,68031.0,0.0004049]
[1718072306273,1.02983492,68032.0,68031.0,0.0004049]
[1718072306498,0.94983492,68032.0,68031.0,0.0004049]
[1718072306715,1.14983492,68032.0,68031.0,0.0004049]
[1718072306944,1.51033492,68032.0,68031.0,0.0004049]
[1718072307163,0.88,68022.0,68021.0,0.46398938]
[1718072307387,0.88,68022.0,68001.0,0.2]
[1718072307388,1.10551499,68002.0,68001.0,0.2]
[1718072307621,1.10551499,68002.0,67928.0,0.07343734]
[1718072307622,0.1,67929.0,67928.0,0.07343734]
[1718072307876,0.927,67929.0,67893.0,0.1]
[1718072308145,0.927,67929.0,67858.0,0.294733]
[1718072308146,0.07215996,67928.0,67913.0,0.07326915]
[1718072308355,0.50511975,67928.0,67927.0,0.1]
[1718072308619,0.08,67928.0,67924.0,0.147222]
[1718072308854,0.53265996,67936.0,67913.0,0.07326915]
[1718072308855,0.09514946,67934.0,67913.0,0.07326915]
[1718072309065,0.50511975,67935.0,67915.0,0.058862]
[1718072309066,0.07215996,67928.0,67915.0,0.058862]
[1718072309268,0.0145,67933.0,67931.0,0.147208]
[1718072309478,0.07215996,67934.0,67931.0,0.147208]
[1718072309685,0.07215996,67944.0,67935.0,0.147199]
[1718072309892,0.43295979,67939.0,67938.0,0.147191]
[1718072310106,0.03704853,67944.0,67878.0,0.17337198]
[1718072310107,0.43295979,67932.0,67878.0,0.17337198]
[1718072310363,0.43295979,67932.0,67930.0,0.147208]
[1718072310555,1.0897,67934.0,67931.0,0.15]
[1718072311205,1.0897,67934.0,67913.0,0.0731006]
[1718072311206,1.0737,67934.0,67913.0,0.0731006]
[1718072311417,1.0737,67934.0,67932.0,0.147204]
[1718072312041,1.0737,67934.0,67933.0,0.15]
[1718072312705,0.97218958,67934.0,67933.0,0.4778]
[1718072313128,0.07215996,67954.0,67953.0,0.14716]
[1718072313330,0.07215996,67961.0,67960.0,0.147145]
[1718072313574,0.07215996,67968.0,67960.0,0.59791993]
[1718072313794,0.07215996,67968.0,67967.0,0.14713]
[1718072314030,0.07215996,67975.0,67973.0,0.464217]
[1718072314241,0.00072,67999.0,67973.0,0.464217]
[1718072314242,0.1,67994.0,67973.0,0.70853693]
[1718072314455,0.0034062,67977.0,67973.0,0.70853693]
[1718072314666,0.0034062,67977.0,67975.0,0.147112]
[1718072314874,0.0034062,67977.0,67976.0,0.14431993]
[1718072315086,0.0034062,67977.0,67976.0,0.24431993]
[1718072315710,0.07215996,67982.0,67976.0,0.24431993]
[1718072315918,0.07215996,67982.0,67981.0,0.147099]
[1718072316118,0.06223343,67982.0,67981.0,0.39141893]
[1718072316331,0.06203437,67982.0,67981.0,0.253702]
[1718072316567,0.06203437,67982.0,67981.0,0.276702]
[1718072316772,0.04603437,67982.0,67981.0,0.276702]
[1718072316977,0.04603437,67982.0,67981.0,0.42429131]
[1718072317184,0.17086044,67989.0,67981.0,0.42429131]
[1718072317185,0.07086044,67989.0,67988.0,0.147084]
[1718072317473,0.00072,67999.0,67988.0,0.69481993]
[1718072317684,0.07215996,68010.0,68009.0,0.147039]
[1718072317854,0.07215996,68010.0,68009.0,0.14431993]
[1718072318262,0.07215996,68026.0,68025.0,0.147004]
[1718072318672,0.17215996,68026.0,68025.0,0.147004]
[1718072318875,0.07215996,68026.0,68025.0,0.170004]
[1718072319021,0.07215996,68033.0,68032.0,0.146989]
[1718072319437,0.07215996,68033.0,68032.0,0.169989]
[1718072319636,0.07215996,68033.0,67989.0,0.1545]
[1718072319838,0.07215996,68008.0,68007.0,0.147043]
[1718072320078,0.0716027,68008.0,68007.0,0.247043]
[1718072320279,0.0716027,68008.0,68007.0,0.376992]
[1718072320483,0.0016027,68008.0,68007.0,0.376992]
[1718072320685,0.2,68011.0,68010.0,0.147037]
[1718072320948,0.15239788,68011.0,68010.0,0.147037]
[1718072321367,0.15239788,68011.0,68010.0,0.29135693]
[1718072321574,0.69641294,68011.0,68010.0,0.29135693]
[1718072321776,0.83015503,68011.0,67999.0,0.147059]
[1718072321982,0.83015503,68011.0,67996.0,0.3248]
[1718072321983,0.01057633,68004.0,68003.0,0.147052]
[1718072322220,0.77263593,68004.0,68003.0,0.14431993]
[1718072322431,1.06688677,68004.0,68003.0,0.147052]
[1718072322834,1.21926533,68004.0,68003.0,0.147052]
[1718072323296,1.5240866,68004.0,68003.0,0.247052]
[1718072323524,1.9813253,68004.0,68003.0,0.123]
[1718072324086,0.2,67996.0,67988.0,0.000946]
[1718072324279,0.2,67996.0,67964.0,0.43295979]
[1718072324280,0.1,67976.0,67975.0,0.147111]
[1718072324455,0.2,67973.0,67966.0,0.14713]
[1718072324715,0.07215996,67967.0,67965.0,0.147133]
[1718072324939,0.1,67964.0,67961.0,0.147142]
[1718072325175,0.3,67952.0,67951.0,0.147163]
[1718072325392,1.14295359,67952.0,67946.0,0.4603]
[1718072325585,0.07215996,67959.0,67958.0,0.147149]
[1718072325790,0.45753959,67959.0,67958.0,0.147149]
[1718072326005,0.83880719,67959.0,67955.0,0.147155]
[1718072326213,0.60951733,67963.0,67946.0,0.4603]
[1718072326214,0.70951733,67963.0,67958.0,0.147149]
[1718072326409,0.83862716,67962.0,67959.0,0.147145]
[1718072326623,0.2,67959.0,67950.0,0.147166]
[1718072326831,0.1,67945.0,67938.0,0.147192]
[1718072327037,0.45755654,67944.0,67939.0,0.43295979]
[1718072327241,0.41483728,67944.0,67943.0,0.147182]
[1718072327446,0.07215996,67960.0,67937.0,0.0454]
[1718072327654,0.07215996,67960.0,67959.0,0.147147]
[1718072327875,0.15251597,67962.0,67938.0,0.163949]
[1718072327876,0.43295979,67962.0,67938.0,0.163949]
[1718072328103,0.07215996,67967.0,67966.0,0.147132]
[1718072328314,0.93462849,67967.0,67966.0,0.1]
[1718072328784,0.93462849,67967.0,67937.0,0.0454]
[1718072328785,0.1,67958.0,67937.0,0.0454]
[1718072329015,0.07215996,67952.0,67947.0,0.43295979]
[1718072329244,0.83462849,67967.0,67951.0,0.14431993]
[1718072329479,0.60052544,67967.0,67966.0,0.147132]
[1718072329707,0.25302158,67967.0,67966.0,0.247132]
[1718072329952,0.10052544,67967.0,67966.0,0.247132]
[1718072330175,0.07215996,67982.0,67980.0,0.147101]
[1718072330410,0.07215996,67982.0,67981.0,0.123]
[1718072330652,0.07215996,67982.0,67980.0,0.147101]
[1718072330653,0.15247116,67981.0,67980.0,0.01432029]
[1718072330896,0.15247116,67981.0,67980.0,0.03732029]
[1718072332083,0.35247116,67981.0,67980.0,0.01432029]
[1718072332309,0.47247116,67981.0,67980.0,0.01432029]
[1718072332512,0.15069116,67981.0,67980.0,0.01432029]
[1718072332985,0.15069116,67981.0,67953.0,0.3130534]
[1718072333202,0.07215996,67979.0,67967.0,0.14431993]
[1718072333417,0.07215996,67979.0,67967.0,0.14452191]
[1718072333649,0.01057564,67971.0,67969.0,0.147125]
[1718072333842,0.07215996,67979.0,67970.0,0.26731993]
[1718072334079,0.1,67980.0,67978.0,0.147106]
[1718072334307,0.2,67990.0,67979.0,0.1]
[1718072334562,0.07215996,67980.0,67979.0,0.147104]
[1718072334790,0.07215996,67989.0,67979.0,0.123]
[1718072335029,0.1,67983.0,67982.0,0.147097]
[1718072335276,0.1,67983.0,67982.0,0.10020198]
[1718072335521,0.1,67994.0,67982.0,0.10020198]
[1718072335773,0.07215996,67989.0,67987.0,0.147086]
[1718072336029,0.07215996,68005.0,67990.0,0.147079]
[1718072336373,0.1,67992.0,67991.0,0.1]
[1718072336465,0.3,67992.0,67991.0,0.1]
[1718072336722,0.32,67992.0,67991.0,0.1]
[1718072336966,0.32,67992.0,67968.0,0.023]
[1718072337209,0.01057576,67971.0,67969.0,0.147125]
[1718072337498,0.07215996,67978.0,67975.0,0.147112]
[1718072337709,0.1,67965.0,67964.0,0.147135]
[1718072337921,0.3,67965.0,67964.0,0.147135]
[1718072338138,0.1,67957.0,67954.0,0.147157]
[1718072338388,0.1,67957.0,67940.0,0.4892]
[1718072338389,0.08273232,67956.0,67955.0,0.12974252]
[1718072338630,0.08273232,67956.0,67923.0,0.17941939]
[1718072338631,0.22383748,67956.0,67943.0,0.147181]
[1718072338899,0.22383748,67956.0,67924.0,0.16851945]
[1718072338900,0.1,67931.0,67924.0,0.16851945]
[1718072339136,0.2,67934.0,67920.0,0.009515]
[1718072339137,0.22,67921.0,67920.0,0.009515]
[1718072339369,0.1,67923.0,67898.0,0.009515]
[1718072339370,0.3,67913.0,67898.0,0.009515]
[1718072339601,0.3,67913.0,67902.0,0.147269]
[1718072339830,0.46431993,67913.0,67902.0,0.147269]
[1718072340059,0.46431993,67913.0,67898.0,0.009515]
[1718072340060,0.3,67913.0,67904.0,0.147264]
[1718072340299,0.042,67913.0,67898.0,0.009515]
[1718072340534,0.1,67906.0,67871.0,0.10010237]
[1718072340769,0.10736573,67905.0,67866.0,0.07321129]
[1718072341051,0.10736573,67905.0,67859.0,0.15607517]
[1718072341052,0.5,67882.0,67870.0,0.07342327]
[1718072341278,0.2,67877.0,67834.0,0.7]
[1718072341524,0.2,67877.0,67832.0,0.4831]
[1718072341525,0.07215996,67876.0,67855.0,0.058914]
[1718072341745,0.43295979,67872.0,67860.0,0.14736]
[1718072341988,0.01055476,67887.0,67851.0,0.339]
[1718072342197,0.07215996,67898.0,67897.0,0.147281]
[1718072342198,0.01055476,67898.0,67897.0,0.147281]
[1718072342413,0.43295979,67922.0,67897.0,0.147281]
[1718072342630,0.43295979,67922.0,67880.0,0.4831]
[1718072342631,8e-05,67918.0,67881.0,0.294631]
[1718072342949,8e-05,67918.0,67912.0,0.147247]
[1718072343164,0.43295979,67922.0,67919.0,0.147232]
[1718072343316,0.0147,67925.0,67924.0,0.147223]
[1718072343518,0.0147,67932.0,67930.0,0.147208]
[1718072343717,0.2,67926.0,67924.0,0.1]
[1718072343918,0.01056368,67930.0,67924.0,0.1]
[1718072344150,0.01056368,67930.0,67886.0,0.1545]
[1718072344151,0.01056368,67930.0,67925.0,0.1]
[1718072344354,0.01056368,67943.0,67942.0,0.147184]
[1718072344562,0.38175996,67956.0,67944.0,0.14718]
[1718072344563,0.01056368,67945.0,67944.0,0.14718]
[1718072344929,0.01056368,67951.0,67944.0,0.1]
[1718072345166,0.07215996,67945.0,67913.0,0.4831]
[1718072345458,0.07215996,67924.0,67913.0,0.4831]
[1718072345680,0.07215996,67924.0,67914.0,0.14431993]
[1718072345887,0.07215996,67924.0,67914.0,1.68601793]
[1718072346103,0.07215996,67924.0,67915.0,0.023]
[1718072346308,0.07215996,67945.0,67944.0,0.14718]
[1718072346523,0.01056368,67953.0,67944.0,0.14431993]
[1718072346770,0.07215996,67956.0,67915.0,0.361]
[1718072346771,0.50511975,67945.0,67918.0,0.1545]
[1718072346994,0.07215996,67947.0,67945.0,0.147177]
[1718072347195,0.07215996,67947.0,67919.0,0.02467618]
[1718072347196,0.07215996,67955.0,67946.0,0.123]
[1718072347482,0.47448743,67980.0,67946.0,0.123]
[1718072347483,0.04152764,67982.0,67947.0,0.4825]
[1718072347735,0.04152764,67990.0,67948.0,0.1775]
[1718072347968,0.08305529,67993.0,67948.0,0.1775]
[1718072347969,0.04152764,67992.0,67991.0,0.147078]
[1718072348197,0.07215996,67998.0,67996.0,0.147067]
[1718072348407,0.07215996,67998.0,67997.0,0.1]
[1718072348613,0.29215996,67998.0,67997.0,0.1]
[1718072349028,0.29215996,67998.0,67957.0,0.01089847]
[1718072349029,0.2,67992.0,67957.0,0.11347248]
[1718072349229,0.07215996,67975.0,67967.0,0.14431993]
[1718072349446,0.07215996,67980.0,67979.0,0.147104]
[1718072349875,0.07215996,67980.0,67933.0,0.1]
[1718072349876,0.07215996,67980.0,67935.0,0.04402201]
[1718072350087,0.07215996,67980.0,67950.0,0.25781825]
[1718072350300,0.07215996,67980.0,67947.0,0.82]
[1718072350301,0.07215996,67957.0,67956.0,0.147154]
[1718072350507,0.09215996,67971.0,67947.0,0.4825]
[1718072350508,0.07215996,67961.0,67949.0,0.294335]
[1718072350773,0.07215996,67961.0,67950.0,0.10039673]
[1718072351196,0.07215996,67961.0,67960.0,0.147145]
[1718072351197,0.27215996,67961.0,67960.0,0.147145]
[1718072351406,0.27215996,67961.0,67925.0,0.294439]
[1718072351407,0.17215996,67961.0,67951.0,0.147164]
[1718072351611,0.17215996,67961.0,67934.0,0.493]
[1718072351612,0.1,67955.0,67934.0,0.493]
[1718072352076,0.1,67955.0,67931.0,0.147207]
[1718072352077,0.07215996,67935.0,67931.0,0.147207]
[1718072352290,0.09215996,67942.0,67941.0,0.147186]
[1718072352291,0.07215996,67942.0,67941.0,0.147186]
[1718072352499,0.27215996,67942.0,67941.0,0.147186]
[1718072352722,0.07215996,67942.0,67941.0,0.147186]
[1718072352936,0.2,67937.0,67935.0,0.147199]
[1718072353173,0.07215996,67940.0,67909.0,0.1545]
[1718072353385,0.2,67968.0,67932.0,0.14431993]
[1718072353600,0.64715996,67971.0,67960.0,0.147145]
[1718072353602,0.1,67965.0,67960.0,0.147145]
[1718072353812,0.1,67965.0,67964.0,0.147136]
[1718072354027,0.3,67969.0,67968.0,0.147128]
[1718072354230,0.07215996,67971.0,67970.0,0.147123]
[1718072354452,0.07215996,67980.0,67978.0,0.147104]
[1718072354682,0.07215996,67980.0,67979.0,0.1]
[1718072354884,0.1,67986.0,67985.0,0.147089]
[1718072355109,0.1,67986.0,67985.0,0.247089]
[1718072355318,0.38215996,67988.0,67987.0,0.147086]
[1718072355529,0.1,67979.0,67951.0,0.294329]
[1718072355749,0.1,67979.0,67977.0,0.247106]
[1718072355973,0.32,67978.0,67952.0,0.14431993]
[1718072356180,0.1,67965.0,67962.0,0.14714]
[1718072356386,0.3,67969.0,67967.0,0.147129]
[1718072356595,0.04163746,67991.0,67963.0,0.1]
[1718072356596,0.2,67979.0,67977.0,0.147106]
[1718072356802,0.1,67982.0,67978.0,0.1]
[1718072357015,0.3,67986.0,67968.0,0.1]
[1718072357248,0.1,67979.0,67968.0,0.1]
[1718072357468,0.07215996,67981.0,67980.0,0.147102]
[1718072357469,0.29215996,67981.0,67980.0,0.147102]
[1718072357672,0.2,67977.0,67968.0,0.1]
[1718072357797,0.17215996,67981.0,67954.0,0.294313]
[1718072358001,0.17215996,67981.0,67950.0,0.001]
[1718072358002,0.17215996,67981.0,67980.0,0.147102]
[1718072358208,0.17215996,67981.0,67956.0,0.1545]
[1718072358209,0.1,67981.0,67956.0,0.1545]
[1718072358441,0.07215996,67988.0,67987.0,0.147086]
[1718072358649,0.2,67969.0,67955.0,0.29431]
[1718072358851,0.2,67971.0,67970.0,0.147123]
[1718072359055,0.22,67971.0,67943.0,0.4874]
[1718072359416,0.3,67937.0,67934.0,4e-05]
[1718072359627,0.17215996,67935.0,67934.0,4e-05]
[1718072360029,0.73647989,67935.0,67934.0,4e-05]
[1718072360207,0.73647989,67935.0,67900.0,0.001]
[1718072360208,0.01,67910.0,67900.0,0.001]
[1718072360362,0.30215996,67901.0,67900.0,0.001]
[1718072360564,0.40215996,67901.0,67900.0,0.001]
[1718072360773,0.39215996,67901.0,67900.0,0.001]
[1718072360970,0.44356429,67901.0,67900.0,0.001]
[1718072361172,0.54647989,67901.0,67900.0,0.001]
[1718072361400,0.2,67868.0,67867.0,0.147347]
[1718072361618,0.34431993,67868.0,67867.0,0.147347]
[1718072361977,0.07215996,67873.0,67854.0,0.058921]
[1718072362205,0.3106,67890.0,67854.0,0.058921]
[1718072362412,0.07215996,67901.0,67854.0,0.058921]
[1718072362413,0.43295979,67889.0,67855.0,0.3415]
[1718072362588,0.07215996,67901.0,67860.0,0.294721]
[1718072362809,0.4629,67913.0,67860.0,0.294721]
[1718072362810,0.43295979,67900.0,67874.0,0.04402201]
[1718072363012,0.43295979,67900.0,67899.0,0.147277]
[1718072363228,0.07215996,67912.0,67899.0,0.12131904]
[1718072363395,0.07215996,67912.0,67872.0,0.07215996]
[1718072363396,0.07215996,67912.0,67900.0,0.1]
[1718072363612,0.07215996,67912.0,67880.0,0.07215996]
[1718072363613,0.06015211,67927.0,67888.0,0.07215996]
[1718072363831,0.07215996,67935.0,67932.0,0.147204]
[1718072364180,8e-05,67956.0,67933.0,0.1]
[1718072364390,0.17215996,67958.0,67934.0,0.023]
[1718072364391,0.07215996,67958.0,67934.0,0.023]
[1718072364605,0.07215996,67942.0,67933.0,0.1]
[1718072364816,0.07215996,67942.0,67941.0,0.147186]
[1718072365045,0.07215996,67942.0,67941.0,0.247186]
[1718072365252,0.17215996,67957.0,67941.0,0.123]
[1718072365468,0.17215996,67957.0,67956.0,0.147154]
[1718072365677,0.17215996,67957.0,67956.0,0.247154]
[1718072365924,0.1,67957.0,67956.0,0.247154]
[1718072366160,0.1,67959.0,67958.0,0.147149]
[1718072366396,0.32,67959.0,67958.0,0.247149]
[1718072366605,0.1,67959.0,67958.0,0.247149]
[1718072367038,0.1,67961.0,67960.0,0.147145]
[1718072367248,0.1,67963.0,67962.0,0.147141]
[1718072367473,0.1,67963.0,67925.0,0.1545]
[1718072367474,0.1,67962.0,67908.0,0.4709]